[Event "Titled Tuesday Blitz July 6 2021"]
[White "Reprintsev, Alexander"]
[Black "Dixit, Arun"]
[WhiteFideId "14100541"]
[BlackFideId "30937671"]
[WhiteElo "2126"]
[BlackElo "2357"]
[Result "1-0"]
[Round "10"]
[TimeControl "180+1"]
[Date "2021.07.06"]
[WhiteClock "0:00:37"]
[BlackClock "0:01:12"]

1. e4 {[%clk 0:03:00]}  c5 {[%clk 0:03:00]} 2. b3 {[%clk 0:01:23]}  Nc6 {[%clk 0:02:58]} 3. Bb2 {[%clk 0:01:22]}  e6 {[%clk 0:02:58]} 4. Qe2 {[%clk 0:01:21]}  d6 {[%clk 0:02:57]} 5. f4 {[%clk 0:01:21]}  e5 {[%clk 0:02:56]} 6. Nc3 {[%clk 0:01:20]}  Nd4 {[%clk 0:02:56]} 7. Qd3 {[%clk 0:01:18]}  exf4 {[%clk 0:02:53]} 8. O-O-O {[%clk 0:01:18]}  Be6 {[%clk 0:02:48]} 9. Nf3 {[%clk 0:01:18]}  Nxf3 {[%clk 0:02:46]} 10. Qxf3 {[%clk 0:01:18]}  Qg5 {[%clk 0:02:42]} 11. Bb5+ {[%clk 0:01:17]}  Kd8 {[%clk 0:02:40]} 12. Ne2 {[%clk 0:01:14]}  a6 {[%clk 0:02:35]} 13. Bd3 {[%clk 0:01:13]}  Bg4 {[%clk 0:02:30]} 14. Qf2 {[%clk 0:01:11]}  Bxe2 {[%clk 0:02:29]} 15. Bxe2 {[%clk 0:01:11]}  Nf6 {[%clk 0:02:27]} 16. h4 {[%clk 0:01:08]}  Qg3 {[%clk 0:02:26]} 17. Qxg3 {[%clk 0:01:07]}  fxg3 {[%clk 0:02:27]} 18. d3 {[%clk 0:01:02]}  Be7 {[%clk 0:02:09]} 19. Rdf1 {[%clk 0:01:02]}  Kd7 {[%clk 0:02:03]} 20. Rh3 {[%clk 0:01:02]}  Rhg8 {[%clk 0:01:58]} 21. Rxg3 {[%clk 0:01:02]}  Ke6 {[%clk 0:01:56]} 22. c4 {[%clk 0:01:01]}  g6 {[%clk 0:01:53]} 23. Rgf3 {[%clk 0:00:59]}  Nd7 {[%clk 0:01:48]} 24. Rxf7 {[%clk 0:00:58]}  Ne5 {[%clk 0:01:47]} 25. Rxh7 {[%clk 0:00:52]}  Raf8 {[%clk 0:01:29]} 26. Rxf8 {[%clk 0:00:52]}  Rxf8 {[%clk 0:01:30]} 27. Bxe5 {[%clk 0:00:52]}  dxe5 {[%clk 0:01:30]} 28. Bg4+ {[%clk 0:00:53]}  Kd6 {[%clk 0:01:30]} 29. Rg7 {[%clk 0:00:52]}  Rf1+ {[%clk 0:01:28]} 30. Kd2 {[%clk 0:00:51]}  Rf2+ {[%clk 0:01:28]} 31. Ke3 {[%clk 0:00:51]}  Rxg2 {[%clk 0:01:28]} 32. Rxg6+ {[%clk 0:00:51]}  Kc7 {[%clk 0:01:28]} 33. h5 {[%clk 0:00:51]}  Rh2 {[%clk 0:01:23]} 34. Bf3 {[%clk 0:00:50]}  Bh4 {[%clk 0:01:20]} 35. Rg2 {[%clk 0:00:43]}  Rxg2 {[%clk 0:01:13]} 36. Bxg2 {[%clk 0:00:43]}  Kb6 {[%clk 0:01:14]} 37. Kf3 {[%clk 0:00:40]}  a5 {[%clk 0:01:12]} 38. Kg4 {[%clk 0:00:41]}  Bf6 {[%clk 0:01:12]} 39. Kf5 {[%clk 0:00:40]}  Bh8 {[%clk 0:01:12]} 40. a4 {[%clk 0:00:37]} 1-0


[Site "https://www.chess.com"]

[Event "Titled Tuesday Blitz July 6 2021"]
[White "Rodchenkov, Vitaly"]
[Black "Samunenkov, Ihor"]
[WhiteFideId "4152964"]
[BlackFideId "14187086"]
[WhiteElo "2337"]
[BlackElo "2281"]
[Result "0-1"]
[Round "10"]
[TimeControl "180+1"]
[Date "2021.07.06"]
[WhiteClock "0:00:14"]
[BlackClock "0:00:06"]

1. e4 {[%clk 0:03:00]}  c5 {[%clk 0:03:00]} 2. Nf3 {[%clk 0:03:00]}  Nc6 {[%clk 0:02:59]} 3. d4 {[%clk 0:03:00]}  cxd4 {[%clk 0:03:00]} 4. Nxd4 {[%clk 0:03:01]}  g6 {[%clk 0:03:01]} 5. Nc3 {[%clk 0:03:00]}  Bg7 {[%clk 0:03:01]} 6. Nb3 {[%clk 0:03:00]}  d6 {[%clk 0:03:00]} 7. Be2 {[%clk 0:03:01]}  Nf6 {[%clk 0:03:01]} 8. O-O {[%clk 0:03:01]}  O-O {[%clk 0:03:01]} 9. Re1 {[%clk 0:03:01]}  a6 {[%clk 0:02:39]} 10. Bg5 {[%clk 0:03:00]}  Be6 {[%clk 0:02:30]} 11. Qd2 {[%clk 0:02:59]}  b5 {[%clk 0:02:23]} 12. Bf1 {[%clk 0:02:57]}  Ne5 {[%clk 0:02:23]} 13. Rad1 {[%clk 0:02:55]}  Rc8 {[%clk 0:02:11]} 14. Nd5 {[%clk 0:02:55]}  Bxd5 {[%clk 0:02:06]} 15. exd5 {[%clk 0:02:54]}  Nc4 {[%clk 0:02:07]} 16. Bxc4 {[%clk 0:02:54]}  bxc4 {[%clk 0:01:52]} 17. Bxf6 {[%clk 0:02:54]}  Bxf6 {[%clk 0:01:48]} 18. Nd4 {[%clk 0:02:54]}  Qb6 {[%clk 0:01:41]} 19. b3 {[%clk 0:02:45]}  cxb3 {[%clk 0:01:26]} 20. cxb3 {[%clk 0:02:44]}  Rc5 {[%clk 0:01:16]} 21. Nc6 {[%clk 0:02:39]}  Bc3 {[%clk 0:01:00]} 22. Nxe7+ {[%clk 0:02:25]}  Kg7 {[%clk 0:01:00]} 23. Qg5 {[%clk 0:02:24]}  Bxe1 {[%clk 0:00:45]} 24. Nf5+ {[%clk 0:02:23]}  Kg8 {[%clk 0:00:45]} 25. Rxe1 {[%clk 0:02:07]}  Qd8 {[%clk 0:00:33]} 26. Ne7+ {[%clk 0:01:56]}  Kg7 {[%clk 0:00:32]} 27. Qg3 {[%clk 0:01:09]}  Re8 {[%clk 0:00:21]} 28. Nf5+ {[%clk 0:01:07]}  Kh8 {[%clk 0:00:21]} 29. Ne3 {[%clk 0:01:06]}  Qf6 {[%clk 0:00:20]} 30. h4 {[%clk 0:01:02]}  Rxd5 {[%clk 0:00:16]} 31. Rc1 {[%clk 0:00:58]}  Rd4 {[%clk 0:00:16]} 32. h5 {[%clk 0:00:55]}  Qf4 {[%clk 0:00:12]} 33. Qh3 {[%clk 0:00:51]}  Rd2 {[%clk 0:00:11]} 34. Rf1 {[%clk 0:00:48]}  Kg7 {[%clk 0:00:10]} 35. Qd7 {[%clk 0:00:42]}  Re5 {[%clk 0:00:06]} 36. hxg6 {[%clk 0:00:39]}  hxg6 {[%clk 0:00:06]} 37. Nc4 {[%clk 0:00:31]}  Rxf2 {[%clk 0:00:05]} 38. Rd1 {[%clk 0:00:14]}  Rxg2+ {[%clk 0:00:05]} 39. Kxg2 {[%clk 0:00:14]}  Re2+ {[%clk 0:00:06]} 0-1


[Site "https://www.chess.com"]

[Event "Titled Tuesday Blitz July 6 2021"]
[White "Rorrer, Grayson"]
[Black "Vivas Zamora, Fabian Ernesto"]
[WhiteFideId "30944996"]
[BlackFideId "3902480"]
[WhiteElo "2122"]
[BlackElo "1966"]
[Result "0-1"]
[Round "10"]
[TimeControl "180+1"]
[Date "2021.07.06"]
[WhiteClock "0:00:09"]
[BlackClock "0:00:06"]

1. e4 {[%clk 0:03:00]}  e5 {[%clk 0:02:59]} 2. Nc3 {[%clk 0:02:59]}  Nf6 {[%clk 0:02:58]} 3. d4 {[%clk 0:03:00]}  exd4 {[%clk 0:02:58]} 4. Qxd4 {[%clk 0:03:01]}  Nc6 {[%clk 0:02:58]} 5. Qd3 {[%clk 0:03:01]}  Bb4 {[%clk 0:02:49]} 6. Bd2 {[%clk 0:03:01]}  O-O {[%clk 0:02:34]} 7. O-O-O {[%clk 0:03:01]}  Re8 {[%clk 0:02:31]} 8. Nge2 {[%clk 0:03:01]}  Qe7 {[%clk 0:02:00]} 9. Bg5 {[%clk 0:02:59]}  Qe6 {[%clk 0:01:28]} 10. Bxf6 {[%clk 0:02:47]}  Qxf6 {[%clk 0:01:23]} 11. Nd5 {[%clk 0:02:47]}  Qh6+ {[%clk 0:01:18]} 12. Kb1 {[%clk 0:02:44]}  Ba5 {[%clk 0:01:11]} 13. f4 {[%clk 0:02:38]}  d6 {[%clk 0:00:59]} 14. Nec3 {[%clk 0:02:24]}  Bg4 {[%clk 0:00:44]} 15. Re1 {[%clk 0:02:13]}  Nb4 {[%clk 0:00:36]} 16. Nxb4 {[%clk 0:02:05]}  Bxb4 {[%clk 0:00:37]} 17. g3 {[%clk 0:02:05]}  c6 {[%clk 0:00:31]} 18. Bg2 {[%clk 0:02:03]}  d5 {[%clk 0:00:24]} 19. h3 {[%clk 0:01:52]}  dxe4 {[%clk 0:00:18]} 20. Bxe4 {[%clk 0:01:33]}  Be6 {[%clk 0:00:15]} 21. g4 {[%clk 0:01:12]}  Qh4 {[%clk 0:00:11]} 22. Bg2 {[%clk 0:01:04]}  Rad8 {[%clk 0:00:10]} 23. Qe3 {[%clk 0:01:04]}  h5 {[%clk 0:00:07]} 24. a3 {[%clk 0:01:01]}  Bd7 {[%clk 0:00:07]} 25. Qd2 {[%clk 0:00:48]}  Rxe1+ {[%clk 0:00:06]} 26. Rxe1 {[%clk 0:00:48]}  Bxg4 {[%clk 0:00:06]} 27. Qe3 {[%clk 0:00:35]}  Bc5 {[%clk 0:00:06]} 28. Qe5 {[%clk 0:00:30]}  Bd4 {[%clk 0:00:04]} 29. Qe7 {[%clk 0:00:23]}  Qxe7 {[%clk 0:00:04]} 30. Rxe7 {[%clk 0:00:24]}  Bxc3 {[%clk 0:00:04]} 31. bxc3 {[%clk 0:00:20]}  Bd7 {[%clk 0:00:04]} 32. Kb2 {[%clk 0:00:19]}  Kf8 {[%clk 0:00:04]} 33. Re3 {[%clk 0:00:19]}  Re8 {[%clk 0:00:05]} 34. Rd3 {[%clk 0:00:19]}  Ke7 {[%clk 0:00:05]} 35. c4 {[%clk 0:00:19]}  Kd8 {[%clk 0:00:05]} 36. c5 {[%clk 0:00:19]}  Kc7 {[%clk 0:00:05]} 37. Bf3 {[%clk 0:00:18]}  h4 {[%clk 0:00:04]} 38. Bh5 {[%clk 0:00:16]}  g6 {[%clk 0:00:04]} 39. Bd1 {[%clk 0:00:16]}  Re4 {[%clk 0:00:05]} 40. Kb3 {[%clk 0:00:11]}  Bf5 {[%clk 0:00:04]} 41. Rd6 {[%clk 0:00:10]}  Rxf4 {[%clk 0:00:04]} 42. Kb2 {[%clk 0:00:10]}  Be6 {[%clk 0:00:04]} 43. c3 {[%clk 0:00:08]}  b6 {[%clk 0:00:04]} 44. Ba4 {[%clk 0:00:06]}  Rxa4 {[%clk 0:00:03]} 45. Rd3 {[%clk 0:00:04]}  bxc5 {[%clk 0:00:03]} 46. Rf3 {[%clk 0:00:05]}  Re4 {[%clk 0:00:03]} 47. Re3 {[%clk 0:00:06]}  Rxe3 {[%clk 0:00:03]} 48. Kc2 {[%clk 0:00:07]}  Rxh3 {[%clk 0:00:04]} 49. Kb2 {[%clk 0:00:08]}  Rh2+ {[%clk 0:00:04]} 50. Kb1 {[%clk 0:00:08]}  h3 {[%clk 0:00:05]} 51. Kc1 {[%clk 0:00:09]}  Rg2 {[%clk 0:00:06]} 0-1


[Site "https://www.chess.com"]

[Event "Titled Tuesday Blitz July 6 2021"]
[White "Rostovtsev, Dmitry"]
[Black "Eternauta2400"]
[WhiteFideId "34278320"]
[WhiteElo "2114"]
[BlackElo "2496"]
[Result "0-1"]
[Round "10"]
[TimeControl "180+1"]
[Date "2021.07.06"]
[WhiteClock "0:00:23"]
[BlackClock "0:00:09"]

1. e4 {[%clk 0:03:00]}  c5 {[%clk 0:02:59]} 2. Nf3 {[%clk 0:03:01]}  Nc6 {[%clk 0:03:00]} 3. d4 {[%clk 0:03:01]}  cxd4 {[%clk 0:03:01]} 4. Nxd4 {[%clk 0:03:02]}  Nf6 {[%clk 0:03:01]} 5. Nc3 {[%clk 0:03:02]}  e5 {[%clk 0:03:01]} 6. Ndb5 {[%clk 0:03:02]}  d6 {[%clk 0:03:02]} 7. Nd5 {[%clk 0:03:03]}  Nxd5 {[%clk 0:03:02]} 8. exd5 {[%clk 0:03:04]}  Nb8 {[%clk 0:03:02]} 9. Qf3 {[%clk 0:03:04]}  a6 {[%clk 0:03:00]} 10. Qa3 {[%clk 0:02:48]}  Be7 {[%clk 0:02:57]} 11. Bg5 {[%clk 0:02:47]}  f6 {[%clk 0:02:52]} 12. Be3 {[%clk 0:02:46]}  O-O {[%clk 0:02:52]} 13. Be2 {[%clk 0:02:43]}  f5 {[%clk 0:02:49]} 14. O-O-O {[%clk 0:02:39]}  f4 {[%clk 0:02:47]} 15. Bd2 {[%clk 0:02:40]}  Bf5 {[%clk 0:02:46]} 16. Bb4 {[%clk 0:02:39]}  axb5 {[%clk 0:02:28]} 17. Qxa8 {[%clk 0:02:40]}  Qc7 {[%clk 0:02:28]} 18. Bd3 {[%clk 0:02:24]}  Bxd3 {[%clk 0:02:27]} 19. Rxd3 {[%clk 0:02:22]}  Na6 {[%clk 0:02:26]} 20. Ba5 {[%clk 0:02:10]}  Rxa8 {[%clk 0:01:35]} 21. Bxc7 {[%clk 0:02:10]}  Nxc7 {[%clk 0:01:36]} 22. a3 {[%clk 0:02:11]}  Bf6 {[%clk 0:01:31]} 23. f3 {[%clk 0:02:08]}  b4 {[%clk 0:01:27]} 24. Rhd1 {[%clk 0:01:55]}  bxa3 {[%clk 0:01:22]} 25. bxa3 {[%clk 0:01:52]}  Kf7 {[%clk 0:01:18]} 26. Rb3 {[%clk 0:01:48]}  Ra7 {[%clk 0:01:13]} 27. c4 {[%clk 0:01:35]}  Na6 {[%clk 0:01:09]} 28. Rb6 {[%clk 0:01:35]}  Ke7 {[%clk 0:01:06]} 29. Kb1 {[%clk 0:01:16]}  Kd7 {[%clk 0:01:05]} 30. Ka2 {[%clk 0:01:16]}  Nc5 {[%clk 0:01:05]} 31. Rb5 {[%clk 0:01:15]}  Kc7 {[%clk 0:01:04]} 32. Rc1 {[%clk 0:01:11]}  g5 {[%clk 0:01:01]} 33. Re1 {[%clk 0:01:04]}  h5 {[%clk 0:01:00]} 34. h3 {[%clk 0:01:03]}  Ra4 {[%clk 0:00:55]} 35. Rc1 {[%clk 0:01:02]}  Nd3 {[%clk 0:00:40]} 36. Rc2 {[%clk 0:01:01]}  Nc5 {[%clk 0:00:39]} 37. Rc1 {[%clk 0:01:00]}  e4 {[%clk 0:00:38]} 38. fxe4 {[%clk 0:00:55]}  Nxe4 {[%clk 0:00:39]} 39. Rc2 {[%clk 0:00:54]}  Nc3+ {[%clk 0:00:38]} 40. Kb3 {[%clk 0:00:54]}  Ra8 {[%clk 0:00:27]} 41. Rb4 {[%clk 0:00:38]}  Re8 {[%clk 0:00:19]} 42. Rxc3 {[%clk 0:00:27]}  Bxc3 {[%clk 0:00:20]} 43. Kxc3 {[%clk 0:00:28]}  Re2 {[%clk 0:00:19]} 44. Rb2 {[%clk 0:00:28]}  Rxb2 {[%clk 0:00:15]} 45. Kxb2 {[%clk 0:00:28]}  Kb6 {[%clk 0:00:15]} 46. Kb3 {[%clk 0:00:18]}  Kc5 {[%clk 0:00:15]} 47. Kc3 {[%clk 0:00:18]}  g4 {[%clk 0:00:12]} 48. hxg4 {[%clk 0:00:19]}  hxg4 {[%clk 0:00:13]} 49. Kd3 {[%clk 0:00:19]}  f3 {[%clk 0:00:11]} 50. gxf3 {[%clk 0:00:20]}  gxf3 {[%clk 0:00:12]} 51. Ke3 {[%clk 0:00:20]}  Kxc4 {[%clk 0:00:13]} 52. Kxf3 {[%clk 0:00:21]}  Kxd5 {[%clk 0:00:13]} 53. Ke3 {[%clk 0:00:22]}  Kc4 {[%clk 0:00:14]} 54. Kd2 {[%clk 0:00:20]}  Kb3 {[%clk 0:00:14]} 55. Kd3 {[%clk 0:00:20]}  Kxa3 {[%clk 0:00:14]} 56. Kc4 {[%clk 0:00:21]}  d5+ {[%clk 0:00:12]} 57. Kb5 {[%clk 0:00:22]}  Kb3 {[%clk 0:00:09]} 58. Kc5 {[%clk 0:00:23]}  Kc3 {[%clk 0:00:08]} 59. Kxd5 {[%clk 0:00:23]}  b5 {[%clk 0:00:09]} 0-1


[Site "https://www.chess.com"]

[Event "Titled Tuesday Blitz July 6 2021"]
[White "Sargissyan, Sargis"]
[Black "Devaev, Alexander"]
[WhiteFideId "13303210"]
[BlackFideId "4169395"]
[WhiteElo "2174"]
[BlackElo "2185"]
[Result "1-0"]
[Round "10"]
[TimeControl "180+1"]
[Date "2021.07.06"]
[WhiteClock "0:00:04"]
[BlackClock "0:00:09"]

1. e4 {[%clk 0:03:00]}  c6 {[%clk 0:02:59]} 2. Nc3 {[%clk 0:03:00]}  d5 {[%clk 0:03:00]} 3. Nf3 {[%clk 0:03:00]}  Nf6 {[%clk 0:03:00]} 4. e5 {[%clk 0:03:00]}  Ne4 {[%clk 0:03:00]} 5. Ne2 {[%clk 0:02:58]}  Qb6 {[%clk 0:03:01]} 6. d4 {[%clk 0:02:56]}  Bg4 {[%clk 0:03:00]} 7. Ng3 {[%clk 0:02:53]}  Nxg3 {[%clk 0:03:00]} 8. hxg3 {[%clk 0:02:53]}  e6 {[%clk 0:02:59]} 9. c3 {[%clk 0:02:49]}  Be7 {[%clk 0:02:26]} 10. Bd3 {[%clk 0:02:45]}  g6 {[%clk 0:02:14]} 11. Qe2 {[%clk 0:02:30]}  c5 {[%clk 0:02:08]} 12. dxc5 {[%clk 0:02:30]}  Bxc5 {[%clk 0:02:08]} 13. Bh6 {[%clk 0:02:30]}  Bf8 {[%clk 0:02:00]} 14. Bxf8 {[%clk 0:02:28]}  Kxf8 {[%clk 0:02:00]} 15. Rh4 {[%clk 0:02:28]}  Bxf3 {[%clk 0:01:58]} 16. gxf3 {[%clk 0:02:08]}  Nd7 {[%clk 0:01:52]} 17. Kf1 {[%clk 0:01:58]}  Kg7 {[%clk 0:01:51]} 18. Kg2 {[%clk 0:01:57]}  h5 {[%clk 0:01:51]} 19. Rah1 {[%clk 0:01:50]}  Qc7 {[%clk 0:01:49]} 20. f4 {[%clk 0:01:45]}  a6 {[%clk 0:01:50]} 21. g4 {[%clk 0:01:30]}  hxg4 {[%clk 0:01:49]} 22. Qxg4 {[%clk 0:01:31]}  Rag8 {[%clk 0:01:41]} 23. Qh3 {[%clk 0:01:28]}  Rxh4 {[%clk 0:01:35]} 24. Qxh4 {[%clk 0:01:28]}  Kf8 {[%clk 0:01:35]} 25. Qh6+ {[%clk 0:01:27]}  Ke7 {[%clk 0:01:33]} 26. Qh7 {[%clk 0:01:24]}  Qc8 {[%clk 0:01:28]} 27. Qh4+ {[%clk 0:01:19]}  Ke8 {[%clk 0:01:26]} 28. Rh3 {[%clk 0:01:13]}  Qd8 {[%clk 0:01:21]} 29. Qh7 {[%clk 0:01:09]}  Rf8 {[%clk 0:01:18]} 30. Bxg6 {[%clk 0:00:39]}  Qe7 {[%clk 0:01:08]} 31. Bc2 {[%clk 0:00:34]}  Kd8 {[%clk 0:01:08]} 32. Rg3 {[%clk 0:00:35]}  Nc5 {[%clk 0:00:41]} 33. Rg7 {[%clk 0:00:35]}  Qe8 {[%clk 0:00:37]} 34. b4 {[%clk 0:00:31]}  Nd7 {[%clk 0:00:26]} 35. Qh4+ {[%clk 0:00:14]}  Qe7 {[%clk 0:00:22]} 36. Qg3 {[%clk 0:00:13]}  Kc7 {[%clk 0:00:18]} 37. Bd3 {[%clk 0:00:11]}  Nb6 {[%clk 0:00:18]} 38. Qe3 {[%clk 0:00:10]}  Nc8 {[%clk 0:00:16]} 39. f5 {[%clk 0:00:08]}  exf5 {[%clk 0:00:14]} 40. Bxf5 {[%clk 0:00:08]}  Nb6 {[%clk 0:00:14]} 41. Qc5+ {[%clk 0:00:07]}  Qxc5 {[%clk 0:00:12]} 42. bxc5 {[%clk 0:00:08]}  Nc4 {[%clk 0:00:05]} 43. e6 {[%clk 0:00:08]}  Kc6 {[%clk 0:00:05]} 44. Rxf7 {[%clk 0:00:08]}  Re8 {[%clk 0:00:05]} 45. e7 {[%clk 0:00:09]}  Kxc5 {[%clk 0:00:04]} 46. Bg6 {[%clk 0:00:09]}  Rg8 {[%clk 0:00:04]} 47. Rf6 {[%clk 0:00:07]}  Nd6 {[%clk 0:00:04]} 48. Rxd6 {[%clk 0:00:06]}  Kxd6 {[%clk 0:00:05]} 49. e8=Q {[%clk 0:00:06]}  Rxe8 {[%clk 0:00:05]} 50. Bxe8 {[%clk 0:00:06]}  Kc5 {[%clk 0:00:06]} 51. f4 {[%clk 0:00:06]}  Kc4 {[%clk 0:00:07]} 52. f5 {[%clk 0:00:06]}  Kxc3 {[%clk 0:00:06]} 53. f6 {[%clk 0:00:06]}  d4 {[%clk 0:00:07]} 54. Ba4 {[%clk 0:00:05]}  d3 {[%clk 0:00:08]} 55. f7 {[%clk 0:00:05]}  b5 {[%clk 0:00:09]} 56. Bb3 {[%clk 0:00:05]}  Kd2 {[%clk 0:00:09]} 57. f8=Q {[%clk 0:00:04]} 1-0


[Site "https://www.chess.com"]

[Event "Titled Tuesday Blitz July 6 2021"]
[White "Sawlin, Leonid"]
[Black "Assaubayeva, Bibisara"]
[WhiteFideId "4689542"]
[BlackFideId "13708694"]
[WhiteElo "2412"]
[BlackElo "2232"]
[Result "0-1"]
[Round "10"]
[TimeControl "180+1"]
[Date "2021.07.06"]
[WhiteClock "0:02:08"]
[BlackClock "0:00:21"]

1. e4 {[%clk 0:03:00]}  c5 {[%clk 0:02:54]} 2. Nf3 {[%clk 0:03:00]}  d6 {[%clk 0:02:54]} 3. d4 {[%clk 0:03:01]}  cxd4 {[%clk 0:02:55]} 4. Nxd4 {[%clk 0:03:02]}  Nf6 {[%clk 0:02:55]} 5. Nc3 {[%clk 0:03:03]}  a6 {[%clk 0:02:56]} 6. Bg5 {[%clk 0:03:03]}  e6 {[%clk 0:02:56]} 7. f4 {[%clk 0:03:04]}  Be7 {[%clk 0:02:57]} 8. Qe2 {[%clk 0:03:04]}  Qc7 {[%clk 0:02:57]} 9. O-O-O {[%clk 0:03:04]}  h6 {[%clk 0:02:54]} 10. Bh4 {[%clk 0:03:04]}  Nbd7 {[%clk 0:02:53]} 11. Kb1 {[%clk 0:03:03]}  b5 {[%clk 0:02:29]} 12. a3 {[%clk 0:03:03]}  Bb7 {[%clk 0:02:27]} 13. g4 {[%clk 0:03:03]}  Rc8 {[%clk 0:02:14]} 14. Bg2 {[%clk 0:02:58]}  Nb6 {[%clk 0:02:01]} 15. e5 {[%clk 0:02:56]}  Bxg2 {[%clk 0:01:31]} 16. Qxg2 {[%clk 0:02:57]}  dxe5 {[%clk 0:01:30]} 17. fxe5 {[%clk 0:02:57]}  Nfd5 {[%clk 0:01:21]} 18. Nxd5 {[%clk 0:02:55]}  Nxd5 {[%clk 0:01:22]} 19. Bxe7 {[%clk 0:02:55]}  Qxe7 {[%clk 0:01:21]} 20. Nf5 {[%clk 0:02:43]}  exf5 {[%clk 0:00:56]} 21. Rxd5 {[%clk 0:02:42]}  f4 {[%clk 0:00:34]} 22. Qe4 {[%clk 0:02:42]}  Rc4 {[%clk 0:00:32]} 23. Rd4 {[%clk 0:02:39]}  O-O {[%clk 0:00:28]} 24. Rxc4 {[%clk 0:02:12]}  bxc4 {[%clk 0:00:29]} 25. Qxf4 {[%clk 0:02:13]}  c3 {[%clk 0:00:29]} 26. Rd1 {[%clk 0:02:09]}  Rb8 {[%clk 0:00:27]} 27. b4 {[%clk 0:02:06]}  a5 {[%clk 0:00:24]} 28. Rd4 {[%clk 0:02:05]}  axb4 {[%clk 0:00:23]} 29. axb4 {[%clk 0:02:06]}  Qa7 {[%clk 0:00:22]} 30. Qe3 {[%clk 0:02:05]}  Rxb4+ {[%clk 0:00:20]} 31. Rxb4 {[%clk 0:02:04]}  Qxe3 {[%clk 0:00:21]} 32. Ka2 {[%clk 0:02:02]}  Qxe5 {[%clk 0:00:20]} 33. Kb3 {[%clk 0:02:03]}  Qxh2 {[%clk 0:00:20]} 34. Kxc3 {[%clk 0:02:03]}  Qg3+ {[%clk 0:00:20]} 35. Kb2 {[%clk 0:02:03]}  g6 {[%clk 0:00:20]} 36. Rb3 {[%clk 0:02:03]}  Qxg4 {[%clk 0:00:20]} 37. Rb8+ {[%clk 0:02:04]}  Kg7 {[%clk 0:00:20]} 38. Rb3 {[%clk 0:02:05]}  h5 {[%clk 0:00:20]} 39. Rd3 {[%clk 0:02:05]}  h4 {[%clk 0:00:20]} 40. Kb3 {[%clk 0:02:06]}  h3 {[%clk 0:00:21]} 41. c4 {[%clk 0:02:07]}  h2 {[%clk 0:00:21]} 42. Rd1 {[%clk 0:02:08]}  Qxd1+ {[%clk 0:00:21]} 0-1


[Site "https://www.chess.com"]

[Event "Titled Tuesday Blitz July 6 2021"]
[White "Siva Mahadevan"]
[Black "Pruijssers, Roeland"]
[WhiteFideId "25043153"]
[BlackFideId "1013068"]
[WhiteElo "2203"]
[BlackElo "2545"]
[Result "1-0"]
[Round "10"]
[TimeControl "180+1"]
[Date "2021.07.06"]
[WhiteClock "0:00:51"]
[BlackClock "0:00:05"]

1. e4 {[%clk 0:03:00]}  d5 {[%clk 0:02:56]} 2. exd5 {[%clk 0:03:00]}  Qxd5 {[%clk 0:02:56]} 3. Nf3 {[%clk 0:03:00]}  Bg4 {[%clk 0:02:55]} 4. Be2 {[%clk 0:03:01]}  Nc6 {[%clk 0:02:56]} 5. d4 {[%clk 0:03:01]}  O-O-O {[%clk 0:02:54]} 6. c4 {[%clk 0:03:02]}  Qf5 {[%clk 0:02:53]} 7. Be3 {[%clk 0:03:02]}  Bxf3 {[%clk 0:02:43]} 8. Bxf3 {[%clk 0:03:03]}  Nxd4 {[%clk 0:02:42]} 9. Bxd4 {[%clk 0:03:04]}  Qe6+ {[%clk 0:02:29]} 10. Be2 {[%clk 0:03:04]}  Qe4 {[%clk 0:02:28]} 11. O-O {[%clk 0:03:04]}  Qxd4 {[%clk 0:02:28]} 12. Qa4 {[%clk 0:03:04]}  e6 {[%clk 0:02:18]} 13. Nc3 {[%clk 0:03:04]}  Qb6 {[%clk 0:01:50]} 14. b4 {[%clk 0:01:54]}  Qxb4 {[%clk 0:01:48]} 15. Qxa7 {[%clk 0:01:53]}  Qxc3 {[%clk 0:01:26]} 16. Bf3 {[%clk 0:01:36]}  Bd6 {[%clk 0:01:06]} 17. Rac1 {[%clk 0:01:26]}  Qe5 {[%clk 0:01:03]} 18. Qxb7+ {[%clk 0:01:20]}  Kd7 {[%clk 0:01:03]} 19. Rfd1 {[%clk 0:01:21]}  Qxh2+ {[%clk 0:00:57]} 20. Kf1 {[%clk 0:01:21]}  Ke7 {[%clk 0:00:29]} 21. c5 {[%clk 0:01:20]}  Be5 {[%clk 0:00:28]} 22. Rxd8 {[%clk 0:01:15]}  Kxd8 {[%clk 0:00:28]} 23. Rd1+ {[%clk 0:01:13]}  Ke7 {[%clk 0:00:28]} 24. Qc8 {[%clk 0:01:10]}  Kf6 {[%clk 0:00:25]} 25. Qd8+ {[%clk 0:01:09]}  Kg6 {[%clk 0:00:22]} 26. Be4+ {[%clk 0:01:02]}  Kh6 {[%clk 0:00:17]} 27. Rd3 {[%clk 0:01:02]}  Bf6 {[%clk 0:00:14]} 28. Qe8 {[%clk 0:00:58]}  Qf4 {[%clk 0:00:12]} 29. Rh3+ {[%clk 0:00:56]}  Kg5 {[%clk 0:00:13]} 30. Qxf7 {[%clk 0:00:54]}  g6 {[%clk 0:00:05]} 31. Rg3+ {[%clk 0:00:53]}  Kh6 {[%clk 0:00:05]} 32. Rxg6+ {[%clk 0:00:51]} 1-0


[Site "https://www.chess.com"]

[Event "Titled Tuesday Blitz July 6 2021"]
[White "Tejedor Fuente, Enrique"]
[Black "Daianu, Cristian-Clement"]
[WhiteFideId "2299100"]
[BlackFideId "1208926"]
[WhiteElo "2535"]
[BlackElo "2133"]
[Result "1-0"]
[Round "10"]
[TimeControl "180+1"]
[Date "2021.07.06"]
[WhiteClock "0:01:15"]
[BlackClock "0:01:32"]

1. e4 {[%clk 0:03:00]}  c5 {[%clk 0:02:59]} 2. Nc3 {[%clk 0:03:00]}  e6 {[%clk 0:02:58]} 3. Nge2 {[%clk 0:02:58]}  a6 {[%clk 0:02:57]} 4. d4 {[%clk 0:02:56]}  cxd4 {[%clk 0:02:58]} 5. Nxd4 {[%clk 0:02:57]}  d6 {[%clk 0:02:58]} 6. g4 {[%clk 0:02:54]}  b5 {[%clk 0:02:58]} 7. Bg2 {[%clk 0:02:51]}  Bb7 {[%clk 0:02:58]} 8. O-O {[%clk 0:02:48]}  Qc7 {[%clk 0:02:57]} 9. a4 {[%clk 0:02:45]}  b4 {[%clk 0:02:54]} 10. Na2 {[%clk 0:02:45]}  Nf6 {[%clk 0:02:54]} 11. Re1 {[%clk 0:02:42]}  Be7 {[%clk 0:02:48]} 12. g5 {[%clk 0:02:40]}  Nfd7 {[%clk 0:02:47]} 13. Nxb4 {[%clk 0:02:41]}  d5 {[%clk 0:02:47]} 14. Nxd5 {[%clk 0:02:30]}  exd5 {[%clk 0:02:45]} 15. exd5 {[%clk 0:02:31]}  Ne5 {[%clk 0:02:43]} 16. Nf5 {[%clk 0:02:27]}  O-O {[%clk 0:02:38]} 17. Nxe7+ {[%clk 0:02:15]}  Qxe7 {[%clk 0:02:39]} 18. d6 {[%clk 0:02:15]}  Qd7 {[%clk 0:02:37]} 19. Bxb7 {[%clk 0:02:11]}  Qxb7 {[%clk 0:02:38]} 20. Rxe5 {[%clk 0:02:11]}  Nd7 {[%clk 0:02:28]} 21. Re7 {[%clk 0:02:08]}  Rad8 {[%clk 0:02:28]} 22. b3 {[%clk 0:02:07]}  Qc6 {[%clk 0:02:23]} 23. Bb2 {[%clk 0:02:05]}  f6 {[%clk 0:02:17]} 24. c4 {[%clk 0:01:55]}  Ne5 {[%clk 0:02:13]} 25. Bxe5 {[%clk 0:01:53]}  fxe5 {[%clk 0:02:13]} 26. d7 {[%clk 0:01:49]}  Rf7 {[%clk 0:01:53]} 27. Rxf7 {[%clk 0:01:16]}  Kxf7 {[%clk 0:01:54]} 28. Qh5+ {[%clk 0:01:15]}  Qg6 {[%clk 0:01:40]} 29. Qxg6+ {[%clk 0:01:14]}  Kxg6 {[%clk 0:01:36]} 30. Rd1 {[%clk 0:01:15]}  Kxg5 {[%clk 0:01:32]} 31. c5 {[%clk 0:01:15]} 1-0


[Site "https://www.chess.com"]